Cogmind - Beta 15 @@@ ROGUE MODE // 2025.10.08 @ 15:09:16 Player: microsand Result: Destroyed by G-47 Trooper with Particle Gun Performance ------------- Evolutions (0) 0 Regions Visited (2) 400 Robots Destroyed (15) 75 Value Destroyed (167) 167 Prototype IDs (1) 20 Alien Tech Used (0) 0 Bonus (0) 0 TOTAL SCORE: 662 Bonus ------- None Cogmind --------- Core Integrity 0/250 Matter 300/300 Energy 100/100 System Corruption 1% Temperature Cool (11) Movement Flying (40) Location -10/Mines Parts ------- > --- POWER (1) -------- (None) > --- PROPULSION (2) --- Flight Unit > --- UTILITY (2) ------ (None) > --- WEAPON (2) ------- Improved Medium Laser > --- INVENTORY (5) ---- Light Ion Engine Faulty Improved Medium Laser Assault Rifle Light Assault Rifle Light Assault Rifle Peak State ------------ > --- POWER ------------ Light Ion Engine > --- PROPULSION ------- Flight Unit Flight Unit > --- UTILITY ---------- (None) > --- WEAPON ----------- Improved Medium Laser Improved Medium Laser > --- INVENTORY -------- Light Ion Engine Improved Medium Laser Assault Rifle Light Assault Rifle Light Assault Rifle [Rating: 9] Favorites ----------- Power Light Ion Engine Engine Light Ion Engine Propulsion Flight Unit Leg Aluminum Leg Wheel Wheel Flight Unit Flight Unit Utility Small Storage Unit Device Seismic Detector Storage Small Storage Unit Weapon Improved Medium Laser Energy Gun Improved Medium Laser Ballistic Gun Assault Rifle Build | -11 -10 -10 ------- Run | Yrd Mat Min Slots Evolved . | . . . Power . | . . . Propulsion . | . . . Utility . | . . . Weapon . | . . . Parts Attached 15 | 9 6 . Power 2 | 1 1 . Engine 2 | 1 1 . Core . | . . . Reactor . | . . . Propulsion 6 | 4 2 . Treads . | . . . Leg 2 | 2 . . Wheel 2 | 2 . . Hover . | . . . Flight 2 | . 2 . Utility 2 | 2 . . Device 1 | 1 . . Storage 1 | 1 . . Processor . | . . . Hackware . | . . . Protection . | . . . Artifact . | . . . Weapon 5 | 2 3 . Energy Gun 4 | 1 3 . Energy Cannon . | . . . Ballistic Gun 1 | 1 . . Ballistic Cannon . | . . . Launcher . | . . . Special Weapon . | . . . Impact Weapon . | . . . Slashing Weapon . | . . . Piercing Weapon . | . . . Special Melee Weapon . | . . . Unidentified Prototypes 1 | . 1 . Parts Lost 5 | . 5 . Power 2 | . 2 . Propulsion 1 | . 1 . Utility 1 | . 1 . Weapon 1 | . 1 . Highest Loss Streak 4 | . 4 . To Critical Strikes . | . . . Average Backups 3 | 1 4 5 Power . | . 1 1 Propulsion . | . . . Utility . | . . . Weapon 1 | . 2 4 Tool/Special . | . . . Unused Backups 4 | . 1 3 Power 1 | . . 1 Propulsion . | . . . Utility 1 | . 1 . Weapon 2 | . . 2 Tool/Special . | . . . Average Slot Usage (%) 56 | . 60 28 Engine 9 | . 11 . Wheel 4 | . 5 . Flight 11 | . 11 14 Device 1 | . 1 . Storage 3 | . 4 . Energy Gun 20 | . 21 14 Ballistic Gun 3 | . 4 . Peak Build Rating 9 | 7 9 4 Average Rating 6 | 5 7 4 On Entrance 4 | . 7 7 Naked Turns . | . . . Heaviest Build 13 | 13 13 3 Greatest Support 20 | 20 20 4 Greatest Overweight (x) 2 | . 2 . Average Overweight (x) . | . 1 . Largest Inventory Capacity 8 | 8 8 5 Average Capacity 5 | 5 5 5 Most Carried 8 | 4 8 5 Average Carried 3 | 1 4 5 Final Capacity 8 | 8 5 5 Final Carried 5 | 4 5 5 Class Distribution -------------------- 100% | Mutant Dominant Class ---------------- Mutant | -10/Materials Mutant | -10/Mines Resources | -11 -10 -10 ----------- Run | Yrd Mat Min Matter Collected 389 | 304 85 . Remotely . | . . . Salvage Created 379 | 163 216 . Parts 31 | 12 19 . Haulers Intercepted . | . . . Recyclers Shooed 2 | . 2 . Parts Field Recycled . | . . . Retrieved Matter . | . . . Parts Self-Destructed . | . . . Prevented . | . . . Kills | -11 -10 -10 ------- Run | Yrd Mat Min Combat Hostiles Destroyed 9 | . 9 . Guns 9 | . 9 . Classes Destroyed 6 | 3 3 . Worker 1 | 1 . . Tunneler 2 | 2 . . Recycler 1 | 1 . . Watcher 2 | . 2 . Swarmer 8 | . 8 . Grunt 1 | . 1 . Best Kill Streak 8 | 2 8 . Combat Bots Only 8 | . 8 . Max Kills in Single Turn 2 | 1 2 . Gunslinging 1 | . 1 . Exploded . | . . . Melee . | . . . Uniques/NPCs Destroyed . | . . . Combat | -11 -10 -10 -------- Run | Yrd Mat Min Hostile Shots Fired 80 | . 79 1 Missed 20 | . 20 . Hits 60 | . 59 1 Projectile 60 | . 59 1 Critical Strikes 2 | . 2 . Damage Taken 576 | 12 548 16 Core 256 | 7 233 16 Absorbed by Shields . | . . . Core Remaining (%) 97 | 97 . . Volleys Fired 32 | 7 25 . Largest 2 | 2 2 . Hottest 112 | 70 112 . Shots Fired 54 | 14 40 . Gun 54 | 14 40 . Cannon . | . . . Launcher . | . . . Special . | . . . Kinetic 18 | 7 11 . Thermal 36 | 7 29 . Explosive . | . . . Electromagnetic . | . . . Robot Hit Streak 8 | 3 8 . Robot Miss Streak 7 | 3 7 . Penetration Max . | . . . Secondary Targets 1 | . 1 . Max Gunslinging Chain 1 | . 1 . Shots Hit Robots 28 | 8 20 . Core Hits 18 | 7 11 . Critical Kills . | . . . Critical Parts Destroyed . | . . . Critical Strikes 3 | . 3 . Burn 3 | . 3 . Melee Attacks . | . . . Impact . | . . . Slashing . | . . . Piercing . | . . . Sneak Attacks . | . . . Combat Hostiles . | . . . Follow-up Attacks . | . . . Damage Inflicted 440 | 116 324 . Guns 428 | 104 324 . Cannons . | . . . Explosions . | . . . Melee . | . . . Ramming 12 | 12 . . Kinetic 165 | 80 85 . Thermal 263 | 24 239 . Explosive . | . . . Electromagnetic . | . . . Impact . | . . . Slashing . | . . . Piercing . | . . . Highest Corruption 1 | . 1 1 Average Corruption 1 | . 1 1 Corruption Purged . | . . . Corruption Blocked . | . . . Overload Shots . | . . . Overflow Damage . | . . . Projectiles . | . . . Explosions . | . . . Melee . | . . . Knockbacks . | . . . Impact . | . . . Kinetic . | . . . Secondary . | . . . Self-Inflicted Damage 5 | 5 . . Shots . | . . . Rammed 3 | 3 . . Targets Rammed 3 | 3 . . Kicked . | . . . Crushed . | . . . Highest Temperature 216 | 27 216 . Average Temperature 55 | 11 67 . Received Heat Transfer 27 | . 18 9 Siege Activations . | . . . Martial Activations . | . . . Shielding Activations . | . . . Robots Disrupted . | . . . Combat Hostiles . | . . . Robots Corrupted . | . . . Combat Hostiles . | . . . Parts Fried . | . . . Impact Corruptions . | . . . Robots Melted . | . . . Combat Hostiles . | . . . Parts Melted 2 | . 2 . Heat Transferred 925 | 74 851 . Parts Sabotaged . | . . . Parts Stolen . | . . . Parts Stripped . | . . . Power Chain Reactions . | . . . Alert | -11 -10 -10 ------- Run | Yrd Mat Min Maximum Alert Level . | . . . Low Security (%) 100 | 100 100 100 Level 1 . | . . . Level 2 . | . . . Level 3 . | . . . Level 4 . | . . . Level 5 . | . . . High Security . | . . . Max Security . | . . . Peak Influence 120 | 5 120 1 Initial 3 | . 3 1 Average 39 | 1 66 . Influence Increases 234 | 20 214 . Destroy 0b10 Robot/C 180 | . 180 . Destroy 0b10 Robot/NC 30 | 20 10 . Destroy Leader 24 | . 24 . Influence Decreases 234 | 15 215 4 Entered New Map 5 | . 2 3 Time Decay 179 | 15 163 1 Lost Part 50 | . 50 . Squads Dispatched . | . . . Investigation . | . . . Extermination . | . . . Reinforcement . | . . . Assault . | . . . Garrison . | . . . Intercept . | . . . Searches Triggered . | . . . Construction Impeded . | . . . Haulers Reinforced . | . . . Active Scanning Responses . | . . . Cargo Convoy Interrupts . | . . . Stealth | -11 -10 -10 --------- Run | Yrd Mat Min Distress Signals 1 | . 1 . Communications Jammed . | . . . Distress Signals . | . . . Times Spotted 14 | . 14 . Peak Tracking Total 9 | . 9 2 Tactical Retreats . | . . . Traps | -11 -10 -10 ------- Run | Yrd Mat Min Traps Triggered 2 | . 2 . Indirectly . | . . . Trap Hack Attempts . | . . . Triggered . | . . . Disarmed . | . . . Reprogrammed . | . . . Reused . | . . . Traps Extracted . | . . . Installed . | . . . Triggered . | . . . Machines | -11 -10 -10 ---------- Run | Yrd Mat Min Machines Disabled . | . . . Max in Single Turn . | . . . Machines Repaired . | . . . Machines Dismantled . | . . . Machines Sabotaged . | . . . Overloaded Fab Kills . | . . . Hacking | -11 -10 -10 --------- Run | Yrd Mat Min Machines Accessed 1 | . 1 . Terminals 1 | . 1 . Fabricators . | . . . Repair Stations . | . . . Recycling Units . | . . . Scanalyzers . | . . . Garrison Access . | . . . Total Hacks 3 | . 3 . Successful . | . . . Failed 3 | . 3 . Catastrophic 1 | . 1 . Database Lockouts . | . . . Manual 3 | . 3 . Terminals 3 | . 3 . Fabricators . | . . . Repair Stations . | . . . Recycling Units . | . . . Scanalyzers . | . . . Garrison Access . | . . . Terminal Hacks . | . . . Fabricator Hacks . | . . . Repair Station Hacks . | . . . Recycling Unit Hacks . | . . . Scanalyzer . | . . . Garrison Access Hacks . | . . . Unauthorized Hacks . | . . . Terminals . | . . . Fabricators . | . . . Repair Stations . | . . . Recycling Units . | . . . Scanalyzers . | . . . Garrison Access . | . . . Data Cores Recovered . | . . . Used . | . . . Hacking Detections 1 | . 1 . Full Trace Events 1 | . 1 . Feedback Events . | . . . Feedback Blocked . | . . . Robot Schematics Acquired . | . . . Robots Built . | . . . Authchips . | . . . Time . | . . . Total Robot Build Rating . | . . . Part Schematics Acquired . | . . . Parts Built . | . . . Authchips . | . . . Time . | . . . Total Part Build Rating . | . . . Parts Repaired . | . . . Time . | . . . Parts Recycled . | . . . Recycled Matter . | . . . Retrieved Matter . | . . . Retrieved Components . | . . . Parts Scanalyzed . | . . . Part Schematics Acquired . | . . . Parts Damaged . | . . . Bothacking | -11 -10 -10 ------------ Run | Yrd Mat Min Used RIF Installer . | . . . Robots Hacked . | . . . Non-combat . | . . . Combat . | . . . Robot Hacks Applied . | . . . Relay Couplers Released . | . . . Fabnet Peak Effective % . | . . . Robots Rewired . | . . . Allies Hacked . | . . . Hacks Repelled . | . . . Allies | -11 -10 -10 -------- Run | Yrd Mat Min Total Allies . | . . . Largest Group . | . . . Highest-Rated Group . | . . . Highest-Rated Ally . | . . . Total Orders . | . . . Ally Attacks . | . . . Total Damage . | . . . Kills . | . . . Allies Corrupted . | . . . Allies Melted . | . . . Intel | -11 -10 -10 ------- Run | Yrd Mat Min Active Infowar (turns) 68 | 68 . . Seismic 68 | 68 . . Robot Analysis Total . | . . . Derelict Logs Recovered 1 | . . 1 Drone Launches . | . . . Drone Recoveries . | . . . Exploration | -11 -10 -10 ------------- Run | Yrd Mat Min Turns Passed 579 | 199 343 37 Spaces Moved 408 | 140 177 91 Core 15 | 15 . . Treads . | . . . Legs 97 | 97 . . Wheels 68 | 28 40 . Hover . | . . . Flight 228 | . 137 91 Fastest Speed 37 | 50 37 40 Average Speed 107 | 104 143 40 Slowest Speed 200 | 120 200 40 Overloaded Moves . | . . . Propulsion Burnouts . | . . . Robots Hopped . | . . . Potential Cave-ins . | . . . Cave-ins Triggered . | . . . Exploration Rate (%) 19 | 5 35 17 Regions Visited 2 Branch Regions 1 Pre-discovered Areas . | . . . Known Exits Taken . | . . . Unknown Exits Taken 2 | 1 1 . Scrap Searched 2 | . . 2 Spaces Dug . | . . . Terrain Destroyed . | . . . Melee . | . . . Projectile . | . . . AOE . | . . . Terrain Rammed . | . . . Walls Destroyed . | . . . Machines Disabled . | . . . Actions | -11 -10 -10 --------- Run | Yrd Mat Min Total 496 | 177 227 92 Wait 14 | 8 6 . Move 406 | 139 176 91 Hop . | . . . Pick Up 19 | 11 8 . Fast Attach . | . . . Attach 10 | 7 3 . Detach . | . . . Swap 5 | 2 3 . Drop 7 | . 6 1 Fire 32 | 7 25 . Melee . | . . . Ram 3 | 3 . . Kick . | . . . Crush . | . . . Escape Stasis . | . . . Rewire . | . . . Trap . | . . . Miscellaneous . | . . . Route ------- -11/Scrapyard -10/Materials -10/Mines History --------- Turn | Location | Event 3 | -11/Scrapyard | Discovered new exit (range 15) 200 | -11/Scrapyard | Entered Materials 241 | -10/Materials | Core integrity fell below 50% 284 | -10/Materials | Destroyed 8 combat bots 287 | -10/Materials | Lost 4 parts (1p1n1u1w) 329 | -10/Materials | Build established: Mutant 344 | -10/Materials | Discovered new exit (range 11) 402 | -10/Materials | Core integrity fell below 20% 543 | -10/Materials | Entered Mines 549 | -10/Mines | Learned location of 1 exit from Materials 580 | -10/Mines | Destroyed by G-47 Trooper with Particle Gun Last Messages --------------- the area. 00531_ Chain reaction triggered in Lgt. Ion Engine. 00539_ Acquired 17 matter. 00542_ U-05 Engineer lays Concrete. LOCATION=UNKNOWN GOAL=ESCAPE Something is scanning the area. 00543_ Dropped Imp. Medium Laser. 00544_ K-01 Serf collects debris. 00549_ Acquired derelict log, extracted data. Data stored: Materials exits (x1). 00560_ Searching scrap... 00560_ Found Lgt. Cannon. 00560_ Found 50 Matter. 00565_ Searching scrap... 00565_ Found Lgt. Armor Plating. 00565_ Found Sensor Array. 00565_ Found Med. Matter Pod. 00565_ Found 64 Matter. Map ----- +----------------------------------------------------+ | ?????????????????????????????????????????? | | ?????????????????????????????????????????? | | ?????????????????????????????????????????? | | ?????????????????????????????????????????? | | ?????????????????????????????????????????? | | ?????????????????????????????????????????? | | ?????????????????????????????????????????? | | ?????????????????????????????????????????? | | ?????????????????????????????????????????? | | ?????????????????????????????????????????? | | ?????????????????????????????????????????? | | ???????????????????? #???????????????????? | | ???????????????????? #???????????????????? | | ?????????????#????## #???????????????????? | | ????????????## ??? #???????????????????? | | ????????????# ?"" ????????????????????? | | ????????????? """ ????????????????????? | | ????????????? """ ????????????????????? | | ?????????????? """ #????????????????????? | | ?????????????? #????????????????????? | | ??????????????? ?????????????????????? | | ??????????????? ?????????????????????? | | ????????##?????# ??????????????????????? | | ????????? ##??# ??????????????????????? | | ?????### ?# #??????????????????????? | | ???# # @########???????????????? | | ???# g #????????? | | ?????????# ### ########???????????????? | | ?????????## ????# #??????????????????????? | | ????????????????# ##?????????????????????? | | ???????????????## ##????????????????????? | | ???????????????# ##???????????????????? | | ???????????????# ##??????????????????? | | ???????????????## ##?????????????????? | | ????????????????## ##????????????????? | | ?????????????????## ####?????????????? | | ??????????????????# ##????????????? | | ??????????????????# """ ##???????????? | | ??????????????????# """ #???????????? | | ??????????????????## """ #???????????? | | ?????????########### ##???????????? | | ?????????# ### #????????????? | | ?????????# ##???#????????????? | | ?????????# ########### #????#????????????? | | ?????????# #?# ] #### #????????????? | | ????????## #?# #######% #????????????? | | ???????## ###!#?????###### #????????????? | | ???##### ##%#????####### ##???????????? | | ???# !!##???# #???????????? | | ???## ##### [ #???????????? | +----------------------------------------------------+ Best States ------------- Heat Dissipation 25 Energy Generation 10 Energy Capacity 125 Matter Stores 300 Matter Capacity 300 Sight Range 16 Terrain Scan Density 10 Evasion (%) 62 Item Schematics ----------------- None Robot Schematics ------------------ None Fabricated ------------ Nothing Repaired ---------- Nothing Alien Tech Used ----------------- None Achievements -------------- None Challenges ------------ None Game ------ Seed NavigationDecoderManipulator Manual? 0 Play Time 00:05:43 Cumulative 10.0 hours Start 2025.10.08 @ 14:52:17 End 2025.10.08 @ 15:09:16 Sessions 1 Manual Loads 0 Difficulty Rogue Special Mode None Game No. 33 Rogue 33 Adventurer 0 Explorer 0 Win Type - Total 0 Types 0/0/0/0/0/0/0/0/0/0 Lore% 16 Gallery% 17 Achievement% 18 Wizard Run 0 Options --------- Layout 1 ASCII 0 Keyboard 0 Movement Numpad Keybinds 0 Fullscreen 1 Font 24/Smallcaps Map View 50x35 Zoom Use 0% Tactical HUD 1 Map Filters NONE Filters NONE Steam X RUN: c87adaa9-9962-4c1d-889b-7b3ef06bf07b